bitfinex-derivatives/quotes_ETHF0:USTF0_20250314
["timestamp","ask_amount","ask_price","bid_price","bid_amount"]
[1741962450833,1.0489,1906.9,1906.8,40.80786308]
[1741962451129,1.0489,1907.0,1906.8,41.85679308]
[1741962451324,1.0489,1907.0,1906.8,45.06459308]
[1741962451525,10.97936308,1907.1,1906.8,44.01566308]
[1741962451526,1.0489,1906.9,1906.8,44.01566308]
[1741962451725,10.97936308,1907.1,1906.8,44.01566308]
[1741962451926,1.0489,1906.9,1906.8,44.01566308]
[1741962452126,1.04888,1907.0,1906.8,45.06459308]
[1741962452433,1.04888,1907.0,1906.9,11.1162]
[1741962453234,1.0489,1906.9,1906.8,40.80786308]
[1741962453433,4.2419,1906.9,1906.8,0.00786308]
[1741962453729,7.53798549,1906.9,1906.8,0.00786308]
[1741962454233,10.03798549,1906.9,1906.8,0.00786308]
[1741962454633,7.53798549,1906.9,1906.8,0.00786308]
[1741962455230,6.48908549,1906.9,1906.8,0.00786308]
[1741962455439,7.4497,1906.9,1906.8,0.00786308]
[1741962455836,4.2419,1906.9,1906.8,40.80786308]
[1741962456137,3.193,1906.9,1906.8,41.85682308]
[1741962456330,0.00786308,1907.1,1906.8,40.80786308]
[1741962456629,1.04885,1907.0,1906.9,12.52439]
[1741962457138,1.04885,1907.0,1906.9,12.5244]
[1741962457335,3.2078,1907.0,1906.2,5.2822]
[1741962457541,3.2078,1906.8,1906.3,11.4755]
[1741962457733,3.2078,1906.6,1906.3,11.4755]
[1741962458034,11.4064,1906.7,1906.4,41.84914]
[1741962458332,1.04893,1906.9,1906.5,14.0356]
[1741962458532,0.00786308,1907.1,1906.7,3.2078]
[1741962458731,11.226,1907.0,1906.8,10.8278]
[1741962459034,1.05668308,1907.1,1906.9,1.0489]
[1741962459226,0.00786308,1907.1,1907.0,10.8278]
[1741962459536,0.00786308,1907.1,1907.0,11.87665]
[1741962459831,1.05665308,1907.1,1907.0,10.8278]
[1741962460230,0.00786308,1907.1,1907.0,10.8278]
[1741962460428,0.00786308,1907.1,1907.0,11.87665]
[1741962460630,1.05665308,1907.1,1907.0,10.8278]
[1741962461034,0.00786308,1907.1,1907.0,11.87665]
[1741962461731,1.05665308,1907.1,1907.0,10.8278]
[1741962461929,0.00786308,1907.1,1907.0,11.87665]
[1741962462443,1.04852,1907.6,1907.1,2.62198]
[1741962462733,3.2078,1907.8,1907.3,3.2078]
[1741962463036,1.04857,1907.5,1907.4,52.1011]
[1741962463439,10.7756,1907.7,1907.5,1.04854]
[1741962463440,0.00786308,1907.6,1907.5,1.04854]
[1741962464239,11.82389,1908.1,1907.9,1.04832]
[1741962464436,10.7756,1908.1,1907.8,1.04838]
[1741962464641,1.04833,1908.0,1907.8,1.04838]
[1741962464937,1.04833,1908.0,1907.9,1.04835]
[1741962465143,3.193,1908.3,1908.0,1.04826]
[1741962465439,1.0483,1908.0,1907.9,7.56895]
[1741962465635,1.04824,1908.1,1908.0,0.00786308]
[1741962466836,1.04824,1908.1,1908.0,1.05616308]
[1741962467037,1.04824,1908.1,1908.0,0.00786308]
[1741962467645,12.22553,1908.2,1908.0,1.05611308]
[1741962467936,11.1773,1908.2,1908.0,1.05611308]
[1741962468138,1.04824,1908.1,1908.0,0.00786308]
[1741962468337,4.25604,1908.1,1908.0,0.00786308]
[1741962468535,1.04824,1908.1,1908.0,0.00786308]
[1741962468735,6.84426054,1908.1,1908.0,0.00786308]
[1741962469444,4.34426054,1908.1,1908.0,0.00786308]
[1741962471147,1.04824,1908.1,1908.0,0.00786308]
[1741962471452,12.22551,1908.2,1908.0,1.05613308]
[1741962471836,1.04824,1908.1,1908.0,0.00786308]
[1741962473542,18.09715834,1908.1,1908.0,3.08e-06]
[1741962473747,15.59715834,1908.1,1908.0,3.08e-06]
[1741962473947,18.09715834,1908.1,1908.0,3.08e-06]
[1741962474139,19.64833243,1908.1,1908.0,3.08e-06]
[1741962479343,17.14733243,1908.1,1908.0,3.08e-06]
[1741962479744,1.13645834,1908.1,1908.0,3.08e-06]
[1741962479944,1.04824,1908.1,1908.0,3.08e-06]
[1741962480139,1.04824,1908.1,1908.0,1.04830308]
[1741962480346,0.00786308,1908.3,1908.2,1.04819]
[1741962480646,0.00786308,1908.3,1908.1,1.04823]
[1741962480848,0.00786308,1908.3,1908.0,3.08e-06]
[1741962481052,0.00786308,1908.3,1908.0,1.04826308]
[1741962481252,0.00786308,1908.3,1908.2,1.04819]
[1741962481253,1.05601308,1908.3,1908.2,1.04819]
[1741962481453,0.00786308,1908.3,1908.0,3.08e-06]
[1741962481654,0.00786308,1908.3,1908.2,1.04819]
[1741962482250,2.61966,1908.8,1908.2,3.2078]
[1741962482454,9.51961,1909.2,1908.4,3.2078]
[1741962482648,14.0703127,1909.1,1908.7,1.04788]
[1741962482849,1.04774,1909.1,1908.8,3.2078]
[1741962483054,3.2078,1909.3,1908.9,1.04776]
[1741962483252,11.3629,1909.4,1909.1,1.04769]
[1741962483451,1.05544,1909.3,1909.2,11.52]
[1741962483655,1.05544,1909.3,1909.2,12.56764]
[1741962483656,0.00786,1909.3,1909.2,12.56764]
[1741962483860,0.00786,1909.3,1909.2,22.88284]
[1741962484157,11.3629,1909.9,1909.2,21.8352]
[1741962484350,1.04758,1909.3,1909.2,18.6274]
[1741962484546,1.04764,1909.2,1909.1,40.80786308]
[1741962484757,12.49870134,1909.2,1909.1,40.80786308]
[1741962484945,1.04764,1909.2,1909.1,40.80786308]
[1741962485350,14.5707,1909.4,1909.1,40.80786308]
[1741962485655,3.188,1909.6,1909.1,40.80786308]
[1741962485656,3.188,1909.6,1909.2,11.5115]
[1741962485856,1.04758,1909.3,1909.2,11.5115]
[1741962486357,10.7606,1909.5,1909.2,12.55913]
[1741962486560,1.04758,1909.3,1909.2,11.5115]
[1741962487657,13.9684,1909.5,1909.2,11.5115]
[1741962487858,1.04758,1909.3,1909.2,11.5115]
[1741962488051,3.2078,1910.0,1909.2,14.7193]
[1741962488355,10.7606,1909.8,1909.3,46.5104]
[1741962488561,1.04745,1909.6,1909.4,12.15279]
[1741962488753,10.7606,1909.8,1909.4,11.1053]
[1741962488963,1.04747,1909.5,1909.4,11.1053]
[1741962489856,1.04764,1909.2,1909.1,0.00786308]
[1741962490058,1.04764,1909.2,1909.1,11.11316308]
[1741962490958,11.2302,1909.4,1909.1,11.11316308]
[1741962491263,1.04764,1909.2,1909.1,11.11316308]
[1741962491462,1.04764,1909.2,1909.1,12.16085308]
[1741962492553,2.61869,1909.5,1909.1,11.11316308]
[1741962492755,1.04764,1909.2,1909.1,51.91316308]
[1741962492956,1.04764,1909.2,1909.1,11.11316308]
[1741962493663,10.02860232,1909.2,1909.1,3.08e-06]
[1741962493867,17.00490232,1909.2,1909.1,3.08e-06]
[1741962494655,18.55022166,1909.2,1909.1,3.08e-06]
[1741962494857,17.00490232,1909.2,1909.1,3.08e-06]
[1741962495052,18.55030569,1909.2,1909.1,3.08e-06]
[1741962495453,24.52830569,1909.2,1909.1,3.08e-06]
[1741962495657,35.79274337,1909.2,1909.1,3.08e-06]
[1741962496661,35.88093959,1909.2,1909.1,3.08e-06]
[1741962497171,1.04837,1907.9,1907.7,3.2078]
[1741962497372,1.04841,1907.8,1907.7,3.2078]
[1741962497566,2.62078,1908.0,1907.6,6.9172]
[1741962497567,1.04846,1907.7,1907.6,6.9172]
[1741962497768,4.25626,1907.7,1907.6,6.9172]
[1741962498163,1.04852,1907.6,1907.5,5.5637]
[1741962498361,1.04852,1907.6,1907.5,5.57156308]
[1741962498571,1.04849,1907.7,1907.5,6.62013308]
[1741962498767,1.04849,1907.7,1907.6,11.0305]
[1741962498976,15.33293661,1907.7,1907.6,11.0305]
[1741962500166,15.24469,1907.7,1907.6,11.0305]
[1741962500370,15.24469,1907.7,1907.5,5.57156308]
[1741962500371,15.33293016,1907.7,1907.5,0.00786308]
[1741962500565,1.13676016,1907.6,1907.5,3.08e-06]
[1741962500766,11.82656016,1907.6,1907.5,3.08e-06]
[1741962500965,11.82658199,1907.6,1907.5,3.08e-06]
[1741962501174,43.83758199,1907.6,1907.5,3.08e-06]
[1741962501367,43.83758199,1907.6,1906.4,5.337]
[1741962501368,3.2078,1907.3,1906.4,5.337]
[1741962501579,1.04912,1906.5,1906.4,5.337]
[1741962502276,3.184,1906.7,1906.4,5.337]
[1741962502464,1.04912,1906.5,1906.4,5.337]
[1741962502669,0.00786308,1906.6,1906.4,46.137]
[1741962503072,1.04912,1906.5,1906.4,46.137]
[1741962503966,1.04912,1906.5,1906.4,40.8]
[1741962504267,1.04912,1906.5,1906.3,0.00786308]
[1741962504268,1.04918,1906.4,1906.3,0.00786308]
[1741962504463,4.34528512,1906.4,1906.3,0.00786308]
[1741962504769,15.28978512,1906.4,1906.3,0.00786308]
[1741962505271,18.47478512,1906.4,1906.3,0.00786308]
[1741962505471,20.97478512,1906.4,1906.3,0.00786308]
[1741962505669,18.47478512,1906.4,1906.3,0.00786308]
[1741962505871,3.27330512,1906.4,1906.3,0.00786308]
[1741962506070,1.13748512,1906.4,1906.3,0.00786308]
[1741962506267,1.04918,1906.4,1906.3,0.00786308]
[1741962507677,1.13748171,1906.4,1906.3,0.00786308]
[1741962507871,4.25698,1906.4,1906.3,0.00786308]
[1741962508376,4.34529161,1906.4,1906.3,0.00786308]
[1741962509080,1.13749161,1906.4,1906.3,0.00786308]
[1741962509374,1.04918,1906.4,1906.3,0.00786308]
[1741962509771,12.29528,1906.4,1906.3,0.00786308]
[1741962509974,1.04918,1906.4,1906.3,0.00786308]
[1741962510278,12.29528,1906.4,1906.3,0.00786308]
[1741962510478,12.38358364,1906.4,1906.3,0.00786308]
[1741962513369,12.38359699,1906.4,1906.3,0.00786308]
[1741962513574,15.56759699,1906.4,1906.3,0.00786308]
[1741962514079,12.38359699,1906.4,1906.3,0.00786308]
[1741962514274,4.32249699,1906.4,1906.3,11.30366308]
[1741962514478,4.23418,1906.4,1906.3,11.30366308]
[1741962514974,4.23418,1906.4,1906.3,52.10366308]
[1741962515176,1.04918,1906.4,1906.3,52.10366308]
[1741962515574,1.04918,1906.4,1906.3,0.00786308]
[1741962515778,12.17508708,1906.4,1906.3,0.00786308]
[1741962515977,14.67508708,1906.4,1906.3,3.08e-06]
[1741962516281,12.17508708,1906.4,1906.3,3.08e-06]
[1741962517483,1.04918,1906.4,1906.3,3.08e-06]
[1741962517683,1.13748578,1906.4,1906.3,3.08e-06]
[1741962517980,1.04918,1906.4,1906.3,3.08e-06]
[1741962518484,1.13748645,1906.4,1906.3,3.08e-06]
[1741962518883,12.32478645,1906.4,1906.3,3.08e-06]
[1741962519785,1.13748645,1906.4,1906.3,3.08e-06]
[1741962519976,1.13748645,1906.4,1906.3,10.47360308]
[1741962520376,1.04918,1906.4,1906.3,10.47360308]
[1741962520576,26.17557308,1906.6,1906.3,10.47360308]
[1741962520577,0.00786308,1906.6,1906.5,1.04912]
[1741962520881,0.00786308,1906.6,1906.4,5.4858]
[1741962521084,1.04889,1907.0,1906.8,1.04893]
[1741962521281,26.7668,1907.3,1907.0,1.04885]
[1741962521482,26.7668,1907.3,1907.1,10.4736]
[1741962521483,1.13700811,1907.2,1907.1,10.4736]
[1741962521785,1.04874,1907.2,1907.1,51.2736]
[1741962522172,1.13700868,1907.2,1907.1,51.2736]
[1741962522577,1.04874,1907.2,1907.1,51.2736]
[1741962522988,0.00786308,1907.3,1907.2,1.04874]
[1741962523289,1.05654308,1907.3,1907.2,18.0849]
[1741962523680,4.26434308,1907.3,1907.2,18.0849]
[1741962523994,4.35260565,1907.3,1907.2,18.0849]
[1741962524575,3.30392565,1907.3,1907.2,18.0849]
[1741962524789,4.35260565,1907.3,1907.2,18.0849]
[1741962525087,4.35260594,1907.3,1907.2,18.0849]
[1741962525385,4.26434308,1907.3,1907.2,18.0849]
[1741962525576,3.21566308,1907.3,1907.2,18.0849]
[1741962526779,4.26434308,1907.3,1907.2,18.0849]
[1741962527184,3.21566308,1907.3,1907.2,18.0849]
[1741962527684,0.00786308,1907.3,1907.2,19.13364]
[1741962527992,0.00786308,1907.3,1907.2,59.93364]
[1741962529877,3.2078,1908.6,1907.2,71.38153623]
[1741962530078,3.2078,1909.0,1908.6,1.04795]
[1741962530381,3.2078,1908.8,1908.4,10.8441]
[1741962530689,4.25582,1908.5,1908.4,10.8441]
[1741962531082,5.15659345,1908.5,1908.4,10.8441]
[1741962531279,1.04808,1908.4,1908.3,0.00786308]
[1741962531494,12.25758,1908.4,1908.3,0.00786308]
[1741962531783,13.15835345,1908.4,1908.3,0.00786308]
[1741962532286,13.7977167,1908.4,1907.7,6.8227]
[1741962532479,1.04841,1907.8,1907.7,6.8227]
[1741962532883,1.94918037,1907.8,1907.7,6.8227]
[1741962533087,1.04846,1907.7,1907.6,10.6516]
[1741962533287,11.2095,1907.7,1907.2,19.6255]
[1741962533494,1.04859,1907.5,1907.3,1.04867]
[1741962533696,1.04856,1907.6,1907.4,10.6516]
[1741962533994,0.00786308,1907.6,1907.4,10.6516]
[1741962534185,1.04857,1907.5,1907.4,10.6516]
[1741962534787,1.94934037,1907.5,1907.4,10.6516]
[1741962534993,12.41564037,1907.5,1907.4,10.6516]
[1741962535594,6.39566308,1907.6,1907.4,10.6516]
[1741962535787,0.00786308,1907.6,1907.5,1.04857]
[1741962535992,1.04845,1907.8,1907.4,13.8594]
[1741962536185,14.57487037,1908.0,1907.4,14.90799]
[1741962536386,1.04857,1907.5,1907.4,10.6516]
[1741962536781,1.04857,1907.5,1907.4,11.70022]
[1741962537089,0.00786,1907.6,1907.4,10.6516]
[1741962537387,1.04857,1907.5,1907.4,10.6516]
[1741962537685,1.05641,1907.6,1907.4,10.6516]
[1741962537890,1.95718037,1907.6,1907.5,1.04857]
[1741962538088,1.04857,1907.5,1907.4,10.6516]
[1741962538494,1.94934037,1907.5,1907.4,10.6516]
[1741962538693,4.26419,1907.6,1907.4,10.6516]
[1741962539002,1.95716037,1907.6,1907.4,13.8594]
[1741962539188,1.95716037,1907.6,1907.4,14.90801]
[1741962539391,1.95716037,1907.6,1907.5,40.8]
[1741962539589,0.00786,1907.6,1907.5,52.63037]
[1741962539789,1.05638,1907.6,1907.5,51.5818]
[1741962540193,0.00786,1907.6,1907.5,52.63037]
[1741962540590,3.2078,1907.9,1907.5,52.63037]
[1741962540903,5.15697037,1907.9,1907.7,1.04845]
[1741962541198,1.04852,1907.6,1907.5,40.8]
[1741962541394,1.04852,1907.6,1907.4,4.25641]
[1741962541599,11.2258,1907.8,1907.4,3.2078]
[1741962541800,1.04854,1907.6,1907.5,1.04855]
[1741962542001,3.2078,1907.9,1907.5,40.8]
[1741962542196,5.15696037,1907.9,1907.7,1.04843]
[1741962542395,1.04841,1907.8,1907.7,1.04844]
[1741962542701,1.04842,1907.8,1907.7,1.04844]
[1741962542992,4.10857037,1907.9,1907.5,40.8]
[1741962542993,3.2078,1907.9,1907.5,40.8]
[1741962543195,1.04842,1907.8,1907.7,1.04842]
[1741962543393,1.04839,1907.9,1907.8,1.04839]
[1741962543593,1.04843,1907.8,1907.7,1.04844]
[1741962544104,1.04846,1907.7,1907.6,12.55737]
[1741962544397,1.04845,1907.8,1907.7,1.04845]
[1741962545304,1.0484,1907.9,1907.8,1.0484]
[1741962545499,4.25606,1908.1,1908.0,1.0483]
[1741962545699,4.19678672,1908.1,1907.7,6.7328]
[1741962545895,1.04837,1907.9,1907.8,12.55726]
[1741962546307,1.04837,1907.9,1907.8,11.5089]
[1741962546601,1.04837,1907.9,1907.8,12.55731]
[1741962547005,1.04837,1907.9,1907.8,11.5089]
[1741962547397,1.04837,1907.9,1907.8,12.55731]
[1741962547799,1.04827,1908.1,1908.0,1.04828]
[1741962548007,1.04831,1908.0,1907.9,1.0483]
[1741962548211,1.0483,1908.0,1907.9,11.1588]
[1741962548503,1.04835,1908.0,1907.8,8.4512]
[1741962548699,1.94907037,1908.0,1907.9,11.1588]
[1741962549104,10.916,1908.1,1908.0,1.0483]
[1741962549407,1.04817,1908.3,1908.2,1.04819]
[1741962549613,23.547,1908.8,1908.2,3.2078]
[1741962549809,1.048,1908.6,1908.5,1.048]
[1741962550110,1.048,1908.6,1908.5,11.3446]
[1741962551106,1.04802,1908.5,1908.4,0.00786308]
[1741962551311,12.56882,1908.5,1908.4,0.00786308]
[1741962551710,12.56882,1908.5,1908.4,1.05594308]
[1741962551906,12.56882,1908.5,1908.4,0.00786308]
[1741962552109,12.56882,1908.5,1908.4,10.76096308]
[1741962552310,12.56882,1908.5,1908.4,11.80904308]
[1741962552506,13.46959037,1908.5,1908.4,10.76096308]
[1741962552905,13.55778662,1908.5,1908.4,0.00786308]
[1741962553306,13.46959037,1908.5,1908.4,0.00786308]
[1741962553910,13.46959037,1908.5,1908.4,1.05594308]
[1741962554124,13.46959037,1908.5,1908.4,10.76096308]
[1741962554323,13.55779018,1908.5,1908.4,0.00786308]
[1741962554727,13.55779018,1908.5,1908.4,10.76096308]
[1741962554931,13.55779018,1908.5,1908.4,0.00786308]
[1741962555327,12.65701981,1908.5,1908.4,0.00786308]
[1741962555528,12.56882,1908.5,1908.4,10.70236308]
[1741962555729,13.46959037,1908.5,1908.4,10.70236308]
[1741962556731,13.55778856,1908.5,1908.4,10.70236308]
[1741962556926,13.46959037,1908.5,1908.4,10.70236308]
[1741962557428,13.46959037,1908.5,1908.4,0.00786308]
[1741962557625,13.55778892,1908.5,1908.4,0.00786308]
[1741962558229,16.73178892,1908.5,1908.4,0.00786308]
[1741962559131,16.64359037,1908.5,1908.4,0.00786308]
[1741962559434,16.73178839,1908.5,1908.4,0.00786308]
[1741962560429,16.64359037,1908.5,1908.4,0.00786308]
[1741962560632,16.73178558,1908.5,1908.4,0.00786308]
[1741962560933,16.64359037,1908.5,1908.4,0.00786308]
[1741962561132,16.73179222,1908.5,1908.4,0.00786308]
[1741962561633,16.64359037,1908.5,1908.4,1.05594308]
[1741962561833,3.2078,1908.6,1908.5,1.04802]
[1741962562028,1.04797,1908.6,1908.5,12.17142]
[1741962562225,1.04797,1908.6,1908.5,11.1234]
[1741962562835,34.5088,1908.8,1908.5,11.1234]
[1741962563031,3.2078,1909.2,1908.6,2.61993]
[1741962563339,11.04997321,1909.1,1908.8,1.04784]
[1741962563530,11.04997321,1909.1,1908.6,3.2078]
[1741962563531,1.04791,1908.7,1908.6,3.2078]
[1741962563932,1.04791,1908.7,1908.6,44.0078]
[1741962564333,1.04791,1908.7,1908.6,41.84797]
[1741962564936,1.04788,1908.8,1908.7,1.04787]
[1741962565131,1.04782,1908.9,1908.8,1.04786]
[1741962565340,1.0479,1908.8,1908.7,1.04789]
[1741962565636,1.04791,1908.8,1908.7,1.0479]
[1741962566035,10.9094,1908.9,1908.6,40.8]
[1741962566236,1.04787,1908.8,1908.7,1.04787]
[1741962566839,1.04791,1908.7,1908.6,40.8]
[1741962567034,11.95731,1908.7,1908.6,40.8]
[1741962567239,1.04791,1908.7,1908.6,40.8]
[1741962567430,1.0478,1908.9,1908.6,40.8]
[1741962567630,4.25559,1909.0,1908.9,1.0478]
[1741962567830,0.08817571,1909.0,1908.9,1.0478]
[1741962568137,1.04759,1909.3,1909.2,1.04764]
[1741962568733,15.68585,1909.4,1909.3,1.04758]
[1741962569130,9.74,1910.0,1909.1,3.2078]
[1741962569435,1.04749,1909.5,1909.4,1.04753]
[1741962569638,1.04749,1909.5,1909.4,1.05539308]
[1741962569840,1.04746,1909.6,1909.5,1.04746]
[1741962570028,1.04747,1909.5,1909.4,1.05534308]
[1741962570231,1.04747,1909.5,1909.4,0.00786308]
[1741962570440,11.4305,1909.7,1909.4,0.00786308]
[1741962570638,1.04747,1909.5,1909.4,0.00786308]
[1741962570832,3.2078,1909.8,1909.4,0.00786308]
[1741962571143,3.51905037,1909.8,1909.4,0.00786308]
[1741962571329,10.8946,1909.7,1909.4,0.00786308]
[1741962571633,1.04744,1909.6,1909.5,1.04742]
[1741962572045,1.04744,1909.6,1909.5,41.84742]
[1741962572433,1.04744,1909.6,1909.5,40.8]
[1741962572638,1.04747,1909.5,1909.4,0.00786308]
[1741962574240,10.8946,1909.7,1909.4,0.00786308]
[1741962574439,1.04747,1909.5,1909.4,1.05535308]
[1741962574646,1.04747,1909.5,1909.4,1.05537308]
[1741962574935,1.04747,1909.5,1909.4,0.00786308]
[1741962575141,1.94824037,1909.5,1909.4,0.00786308]
[1741962575347,10.82504037,1909.5,1909.4,3.08e-06]
[1741962575546,1.04797,1908.6,1908.5,6.6235]
[1741962575843,6.46495826,1908.6,1907.9,3.2078]
[1741962576044,1.04799,1908.6,1908.5,1.04802]
[1741962576244,1.04803,1908.5,1908.4,1.04805]
[1741962576440,1.048,1908.6,1908.5,1.04802]
[1741962576645,1.04808,1908.5,1908.3,4.26375308]
[1741962576842,0.00786308,1908.6,1908.3,4.26375308]
[1741962577043,1.04808,1908.4,1908.3,0.00786308]
[1741962577235,4.25588,1908.4,1908.3,0.00786308]
[1741962577435,4.34408822,1908.4,1908.3,0.00786308]
[1741962577743,7.4957209,1908.4,1908.3,3.08e-06]
[1741962577936,5.87620567,1908.4,1908.3,3.08e-06]
[1741962579038,5.87621945,1908.4,1908.3,3.08e-06]
[1741962579337,16.72921945,1908.4,1908.3,3.08e-06]
[1741962579934,16.72909188,1908.4,1908.3,3.08e-06]
[1741962580142,14.149022,1908.4,1908.3,3.08e-06]
[1741962580442,15.197102,1908.4,1908.3,3.08e-06]
[1741962580639,1.04804,1908.5,1908.3,1.04811308]
[1741962580836,15.51167308,1908.6,1908.4,1.04806]
[1741962581144,12.30387308,1908.6,1908.4,1.04806]
[1741962581344,11.25586308,1908.6,1908.5,40.8]
[1741962581545,15.59982865,1908.6,1908.5,40.8]
[1741962583042,3.30385865,1908.6,1908.5,40.8]
[1741962583236,3.21566308,1908.6,1908.5,40.8]
[1741962583540,1.05583308,1908.6,1908.5,40.8]
[1741962583740,0.00786308,1908.6,1908.5,40.8]
[1741962583935,0.00786308,1908.6,1908.5,41.84802]
[1741962584146,1.05583308,1908.6,1908.5,40.8]
[1741962584351,12.39362537,1908.6,1908.5,40.8]
[1741962584543,12.39362586,1908.6,1908.5,40.8]
[1741962584743,1.04802,1908.5,1908.4,10.7445]
[1741962584952,1.04808,1908.4,1908.3,3.08e-06]
[1741962585142,1.04808,1908.4,1907.7,11.349]
[1741962585143,1.04841,1907.8,1907.7,11.349]
[1741962585344,1.04837,1907.9,1907.7,55.3568]
[1741962585539,3.168,1908.1,1907.7,55.3568]
[1741962585540,1.04841,1907.8,1907.7,40.8]
[1741962585739,12.42791,1907.8,1907.7,40.8]
[1741962585947,15.63571,1907.8,1907.7,40.8]
[1741962586252,12.42791,1907.8,1907.7,40.8]
[1741962586654,1.04841,1907.8,1907.7,40.8]
[1741962586955,11.3795,1908.0,1907.7,40.8]
[1741962587157,3.167,1908.3,1907.8,12.02329]
[1741962587350,3.167,1908.3,1907.8,12.02331]
[1741962587351,1.04831,1908.0,1907.8,12.02331]
[1741962587545,14.5465,1908.3,1907.9,1.04835]
[1741962587846,1.04824,1908.1,1908.0,10.9749]
[1741962588754,1.13645854,1908.1,1908.0,10.9749]
[1741962589054,11.85935854,1908.1,1908.0,10.9749]
[1741962589850,1.04822,1908.2,1908.0,10.9749]
[1741962590056,10.7229,1908.3,1908.0,12.02319]
[1741962590252,3.2078,1908.4,1908.0,10.9749]
[1741962590452,3.2078,1908.4,1908.1,12.1731]
[1741962590757,4.2559,1908.4,1908.3,1.04813]
[1741962590953,4.2559,1908.4,1908.2,11.2957]
[1741962591155,3.2078,1908.4,1908.2,11.2957]
[1741962591350,1.04808,1908.4,1908.3,1.04813]
[1741962591544,1.04813,1908.3,1908.2,12.34386]
[1741962591945,1.04813,1908.3,1908.2,11.2957]
[1741962592661,1.04813,1908.3,1908.2,12.34389]
[1741962592952,10.7229,1908.5,1908.2,12.34389]
[1741962593159,1.04813,1908.3,1908.2,12.34386]
[1741962593356,1.0481,1908.4,1908.3,1.04811]
[1741962593657,0.00786308,1908.6,1908.3,3.2078]
[1741962593955,0.00786308,1908.6,1908.5,1.04802]
[1741962594158,1.05583308,1908.6,1908.5,1.04802]
[1741962594350,1.05583308,1908.6,1908.5,41.84802]
[1741962594754,0.00786308,1908.6,1908.5,41.84802]
[1741962594961,1.05583308,1908.6,1908.5,40.8]
[1741962596453,0.00786308,1908.6,1908.5,44.34802]
[1741962596756,0.00786308,1908.6,1908.5,55.03112]
[1741962597352,0.00786308,1908.6,1908.5,52.53112]
[1741962597856,1.05583308,1908.6,1908.5,52.53112]
[1741962598056,0.00786308,1908.6,1908.5,52.53112]
[1741962598359,0.00786308,1908.6,1908.5,55.03112]
[1741962598662,6.647,1909.3,1908.5,53.9831]
[1741962598856,1.04783,1908.9,1908.6,3.2078]
[1741962599158,10.6909,1909.2,1908.8,1.04784]
[1741962599356,1.04775,1909.0,1908.9,10.6743]
[1741962599859,1.04775,1909.0,1908.9,51.4743]
[1741962600257,1.0478,1908.9,1908.8,0.00786308]
[1741962600652,11.7387,1908.9,1908.8,0.00786308]
[1741962600853,11.82688083,1908.9,1908.8,0.00786308]
[1741962601351,11.82688083,1908.9,1908.8,3.08e-06]
[1741962601554,15.85797152,1908.9,1908.8,3.08e-06]
[1741962601758,12.47804899,1908.9,1908.8,3.08e-06]
[1741962602064,11.82688083,1908.9,1908.8,3.08e-06]
[1741962602766,13.35915328,1908.9,1908.8,3.08e-06]
[1741962602958,12.47856162,1908.9,1908.8,3.08e-06]
[1741962603160,13.35918532,1908.9,1908.8,3.08e-06]
[1741962603359,13.35963284,1908.9,1908.8,3.08e-06]
[1741962603562,11.7387,1908.9,1908.8,3.08e-06]
[1741962603761,13.36014991,1908.9,1908.8,3.08e-06]
[1741962603958,13.36015035,1908.9,1908.8,3.08e-06]
[1741962604671,15.86015035,1908.9,1908.8,3.08e-06]
[1741962605354,15.77196913,1908.9,1908.8,3.08e-06]
[1741962605558,15.8601714,1908.9,1908.8,3.08e-06]
[1741962605759,16.5231714,1908.9,1908.8,3.08e-06]
[1741962606369,11.82690227,1908.9,1908.8,3.08e-06]
[1741962606864,11.7387,1908.9,1908.8,52.35160308]
[1741962607064,3.17086308,1909.1,1908.8,52.35160308]
[1741962607257,1.04775,1909.0,1908.9,10.4875]
[1741962608170,1.0478,1908.9,1908.8,3.08e-06]
[1741962608369,11.76017246,1908.9,1908.8,3.08e-06]
[1741962608563,13.29516863,1908.9,1908.8,3.08e-06]
[1741962608872,15.79516863,1908.9,1908.8,3.08e-06]
[1741962609262,13.29516863,1908.9,1908.8,3.08e-06]
[1741962609563,11.76017246,1908.9,1908.8,3.08e-06]
[1741962610168,11.672,1908.9,1908.8,11.21400308]
[1741962610766,11.672,1908.9,1908.8,52.01400308]
[1741962611572,0.00786308,1909.1,1908.8,52.01400308]
[1741962611760,0.00786308,1909.1,1909.0,1.04775]
[1741962611962,0.00786308,1909.1,1908.9,26.5657]
[1741962612162,1.05558308,1909.1,1909.0,1.04775]
[1741962612359,0.00786308,1909.1,1909.0,12.26175]
[1741962612668,1.04763,1909.3,1909.0,11.214]
[1741962612864,26.15246,1909.7,1909.1,5.82703]
[1741962613066,1.0475,1909.5,1909.4,1.04751]
[1741962613269,1.04743,1909.6,1909.5,1.04745]
[1741962613464,1.04747,1909.6,1909.2,13.27379]
[1741962613767,0.00786,1909.6,1909.5,1.04747]
[1741962614469,13.10467,1910.0,1909.4,16.3697]
[1741962614667,1.04742,1909.6,1909.5,8.07876]
[1741962614857,1.0474,1909.7,1909.6,1.04741]
[1741962615258,3.2078,1910.0,1909.5,20.8938]
[1741962615463,29.35736,1910.4,1909.8,2.61828]
[1741962615669,10.57471673,1910.3,1909.9,16.3697]
[1741962615870,26.7398,1910.4,1909.9,22.20350308]
[1741962616071,26.7398,1910.4,1909.9,19.58536308]
[1741962616261,1.04708,1910.3,1910.2,1.04708]
[1741962616462,11.73731,1910.4,1910.3,1.04703]
[1741962616768,1.04702,1910.4,1910.3,1.04702]
[1741962617070,1.04697,1910.5,1910.1,12.69904]
[1741962617260,1.04697,1910.5,1910.4,1.04698]
[1741962617462,10.6903,1910.7,1910.3,3.2078]
[1741962617663,5.82467,1910.9,1910.3,3.2078]
[1741962617865,1.04691,1910.6,1910.5,1.04692]
[1741962618374,5.82467,1910.9,1910.4,5.4991]
[1741962618375,3.2078,1910.9,1910.4,5.4991]
[1741962618676,1.04682,1910.7,1910.6,1.04684]
[1741962619177,3.2078,1910.9,1910.6,1.04684]
[1741962619368,3.2078,1910.9,1910.5,3.2078]
[1741962619570,3.2078,1911.2,1910.7,3.2078]
[1741962619875,1.04675,1910.9,1910.5,3.2078]
[1741962620173,1.04676,1910.9,1910.8,1.04676]